Workbook

Sheet Sheet1
A1: Stratocatcher | C1: for Apollo Entry
B3: 11000 | C3: m Stratolaunch altitude
B4: 240 | C4: m/s Stratolaunch velocity
B5: 340 | C5: tonne Stratolaunch gross weight
B6: 590 | C6: tonne Stratolaunch takeoff weight
B7: 1.5 | C7: MN Stratolaunch thrust
B9: 3000 | C9: m est runway with full load
B10: =B6*0.001/B7 -> 0.393 | C10: m/s2 estimated takeoff acceleration
B11: =SQRT(2*B9*B10) -> 48.580 | C11: m/s estimated takeoff velocity
B12: =9.8*B6/B5 -> 17.01 | C12: m/s2 estimated unloaded lift at ground
B15: 150 | C15: m/s Apollo velocity at 7.3 km
A16: 8.23430E-4 | C16: estimated Apollo drag scaling
B17: =(0.3*D33+0.7*D34)-B15 -> 0 | C17: m/s drag estimation error
A19: altitude | D19: velocity | F19: min speed | G19: max drop | H19: max lift
A20: m | B20: kg/m3 | D20: m/s | F20: est m/s | G20: radius m | H20: radius m
A21: 20000 | B21: 0.08890 | C21: 9.7452 | D21: 300.0
A22: 19000 | B22: 0.10400 | C22: 9.7483 | D22: =SQRT(D21^2*(1-(B21+B22)*$A$16*(A21-A22))+(A21-A22)*(C21+C22)) -> 308.5
A23: =2*A22-A21 -> 18000 | B23: 0.12165 | C23: 9.7513 | D23: =SQRT(D22^2*(1-(B22+B23)*$A$16*(A22-A23))+(A22-A23)*(C22+C23)) -> 311.5
A24: =2*A23-A22 -> 17000 | B24: 0.14230 | C24: 9.7544 | D24: =SQRT(D23^2*(1-(B23+B24)*$A$16*(A23-A24))+(A23-A24)*(C23+C24)) -> 308.9
A25: =2*A24-A23 -> 16000 | B25: 0.16647 | C25: 9.7775 | D25: =SQRT(D24^2*(1-(B24+B25)*$A$16*(A24-A25))+(A24-A25)*(C24+C25)) -> 301.2
A26: =2*A25-A24 -> 15000 | B26: 0.19476 | C26: 9.7605 | D26: =SQRT(D25^2*(1-(B25+B26)*$A$16*(A25-A26))+(A25-A26)*(C25+C26)) -> 288.5
A27: =2*A26-A25 -> 14000 | B27: 0.22786 | C27: 9.7636 | D27: =SQRT(D26^2*(1-(B26+B27)*$A$16*(A26-A27))+(A26-A27)*(C26+C27)) -> 271.7
A28: =2*A27-A26 -> 13000 | B28: 0.26666 | C28: 9.7667 | D28: =SQRT(D27^2*(1-(B27+B28)*$A$16*(A27-A28))+(A27-A28)*(C27+C28)) -> 251.6
A29: =2*A28-A27 -> 12000 | B29: 0.31194 | C29: 9.7697 | D29: =SQRT(D28^2*(1-(B28+B29)*$A$16*(A28-A29))+(A28-A29)*(C28+C29)) -> 229.5
A30: =2*A29-A28 -> 11000 | B30: 0.36480 | C30: 9.7728 | D30: =SQRT(D29^2*(1-(B29+B30)*$A$16*(A29-A30))+(A29-A30)*(C29+C30)) -> 207.0 | F30: =$B$11*SQRT($B$41/B30) -> 89.02 | G30: =F30^2/($B$12+1) -> 440 | H30: =D30^2/($B$12-1) -> 2678
A31: =2*A30-A29 -> 10000 | B31: 0.43510 | C31: 9.7759 | D31: =SQRT(D30^2*(1-(B30+B31)*$A$16*(A30-A31))+(A30-A31)*(C30+C31)) -> 184.9 | F31: =$B$11*SQRT($B$41/B31) -> 81.51 | G31: =F31^2/($B$12+1) -> 369 | H31: =D31^2/($B$12-1) -> 2135
A32: =2*A31-A30 -> 9000 | B32: 0.46706 | C32: 9.7789 | D32: =SQRT(D31^2*(1-(B31+B32)*$A$16*(A31-A32))+(A31-A32)*(C31+C32)) -> 168.4 | F32: =$B$11*SQRT($B$41/B32) -> 78.68 | G32: =F32^2/($B$12+1) -> 344 | H32: =D32^2/($B$12-1) -> 1771
A33: =2*A32-A31 -> 8000 | B33: 0.52579 | C33: 9.7820 | D33: =SQRT(D32^2*(1-(B32+B33)*$A$16*(A32-A33))+(A32-A33)*(C32+C33)) -> 157.3 | F33: =$B$11*SQRT($B$41/B33) -> 74.15 | G33: =F33^2/($B$12+1) -> 305 | H33: =D33^2/($B$12-1) -> 1545
A34: =2*A33-A32 -> 7000 | B34: 0.59002 | C34: 9.7851 | D34: =SQRT(D33^2*(1-(B33+B34)*$A$16*(A33-A34))+(A33-A34)*(C33+C34)) -> 146.9 | F34: =$B$11*SQRT($B$41/B34) -> 70.00 | G34: =F34^2/($B$12+1) -> 272 | H34: =D34^2/($B$12-1) -> 1348
A35: =2*A34-A33 -> 6000 | B35: 0.66011 | C35: 9.7882 | D35: =SQRT(D34^2*(1-(B34+B35)*$A$16*(A34-A35))+(A34-A35)*(C34+C35)) -> 137.6 | F35: =$B$11*SQRT($B$41/B35) -> 66.18 | G35: =F35^2/($B$12+1) -> 243 | H35: =D35^2/($B$12-1) -> 1183
A36: =2*A35-A34 -> 5000 | B36: 0.73643 | C36: 9.7912 | D36: =SQRT(D35^2*(1-(B35+B36)*$A$16*(A35-A36))+(A35-A36)*(C35+C36)) -> 129.4 | F36: =$B$11*SQRT($B$41/B36) -> 62.66 | G36: =F36^2/($B$12+1) -> 218 | H36: =D36^2/($B$12-1) -> 1046
A37: =2*A36-A35 -> 4000 | B37: 0.81935 | C37: 9.7928 | D37: =SQRT(D36^2*(1-(B36+B37)*$A$16*(A36-A37))+(A36-A37)*(C36+C37)) -> 122.0 | F37: =$B$11*SQRT($B$41/B37) -> 59.40 | G37: =F37^2/($B$12+1) -> 196 | H37: =D37^2/($B$12-1) -> 930
A38: =2*A37-A36 -> 3000 | B38: 0.90925 | C38: 9.7994 | D38: =SQRT(D37^2*(1-(B37+B38)*$A$16*(A37-A38))+(A37-A38)*(C37+C38)) -> 115.3 | F38: =$B$11*SQRT($B$41/B38) -> 56.39 | G38: =F38^2/($B$12+1) -> 177 | H38: =D38^2/($B$12-1) -> 830
A39: =2*A38-A37 -> 2000 | B39: 1.00660 | C39: 9.8005 | D39: =SQRT(D38^2*(1-(B38+B39)*$A$16*(A38-A39))+(A38-A39)*(C38+C39)) -> 109.2 | F39: =$B$11*SQRT($B$41/B39) -> 53.59 | G39: =F39^2/($B$12+1) -> 160 | H39: =D39^2/($B$12-1) -> 745
A40: =2*A39-A38 -> 1000 | B40: 1.11170 | C40: 9.8036 | D40: =SQRT(D39^2*(1-(B39+B40)*$A$16*(A39-A40))+(A39-A40)*(C39+C40)) -> 103.6 | F40: =$B$11*SQRT($B$41/B40) -> 51.00 | G40: =F40^2/($B$12+1) -> 144 | H40: =D40^2/($B$12-1) -> 670
A41: =2*A40-A39 -> 0 | B41: 1.22500 | C41: 9.8066 | D41: =SQRT(D40^2*(1-(B40+B41)*$A$16*(A40-A41))+(A40-A41)*(C40+C41)) -> 98.5 | F41: =$B$11*SQRT($B$41/B41) -> 48.58 | G41: =F41^2/($B$12+1) -> 131 | H41: =D41^2/($B$12-1) -> 606
